[Event "Early-Titled-Tuesday-Blitz-May-28-2024"]
[Site "Chess.com"]
[Date "2024.05.28"]
[Round "3"]
[White "Likvidator228"]
[Black "KnightmareJoker"]
[Result "1-0"]
[WhiteElo "2524"]
[BlackElo "2298"]
[TimeControl "180+1"]
[EndTime "8:28:22 PDT"]
[Termination "Likvidator228 won by resignation"]

1. d4 {[%clk 0:03:00.6]} 1... Nf6 {[%clk 0:02:59.4]} 2. h3 {[%clk 0:02:59.9]}
2... d5 {[%clk 0:02:57.3]} 3. Nf3 {[%clk 0:03:00.1]} 3... c5 {[%clk 0:02:56]} 4.
e3 {[%clk 0:03:00.3]} 4... Nc6 {[%clk 0:02:56.3]} 5. c3 {[%clk 0:02:55.5]} 5...
Bf5 {[%clk 0:02:56.1]} 6. Nbd2 {[%clk 0:02:54.8]} 6... e6 {[%clk 0:02:55.2]} 7.
dxc5 {[%clk 0:02:52.2]} 7... Bxc5 {[%clk 0:02:55]} 8. b4 {[%clk 0:02:52.9]} 8...
Bd6 {[%clk 0:02:51.3]} 9. Bb2 {[%clk 0:02:53.5]} 9... O-O {[%clk 0:02:42.5]} 10.
a3 {[%clk 0:02:53.4]} 10... a5 {[%clk 0:02:40.5]} 11. b5 {[%clk 0:02:53.2]}
11... Ne5 {[%clk 0:02:31.8]} 12. c4 {[%clk 0:02:49.1]} 12... Nd3+ {[%clk
0:02:24.1]} 13. Bxd3 {[%clk 0:02:48.9]} 13... Bxd3 {[%clk 0:02:25]} 14. Qb3
{[%clk 0:02:48.8]} 14... dxc4 {[%clk 0:02:16.2]} 15. Nxc4 {[%clk 0:02:48.1]}
15... Bxc4 {[%clk 0:01:53.7]} 16. Qxc4 {[%clk 0:02:48.1]} 16... Rc8 {[%clk
0:01:53.6]} 17. Qb3 {[%clk 0:02:46.9]} 17... Nd5 {[%clk 0:01:49.7]} 18. O-O
{[%clk 0:02:46]} 18... Be7 {[%clk 0:01:41.4]} 19. Rfd1 {[%clk 0:02:42.2]} 19...
Qe8 {[%clk 0:01:29.9]} 20. e4 {[%clk 0:02:41.4]} 20... Nf6 {[%clk 0:01:27.5]}
21. Re1 {[%clk 0:02:24.2]} 21... b6 {[%clk 0:01:25.6]} 22. Rad1 {[%clk
0:02:20.3]} 22... Nd7 {[%clk 0:01:18.4]} 23. Nd4 {[%clk 0:02:11.2]} 23... Nc5
{[%clk 0:01:16.4]} 24. Qg3 {[%clk 0:02:11.2]} 24... Bf6 {[%clk 0:01:14.1]} 25.
e5 {[%clk 0:02:08.1]} 25... Be7 {[%clk 0:01:11.9]} 26. Nc6 {[%clk 0:02:08.4]}
26... Rxc6 {[%clk 0:00:58.1]} 27. bxc6 {[%clk 0:02:08.5]} 27... Qxc6 {[%clk
0:00:59]} 28. Bd4 {[%clk 0:02:03.5]} 28... h6 {[%clk 0:00:57]} 29. Bxc5 {[%clk
0:02:02.8]} 29... Bxc5 {[%clk 0:00:57.9]} 30. Kh2 {[%clk 0:01:48.8]} 30... Qa4
{[%clk 0:00:56.6]} 31. Rd3 {[%clk 0:01:45.6]} 31... Qc2 {[%clk 0:00:49.8]} 32.
Rf3 {[%clk 0:01:29.3]} 32... Qd2 {[%clk 0:00:49.6]} 33. Re4 {[%clk 0:01:24.2]}
33... Rd8 {[%clk 0:00:35.1]} 34. Rg4 {[%clk 0:01:22.6]} 34... g6 {[%clk
0:00:35.4]} 35. Rxg6+ {[%clk 0:01:12.6]} 35... Kh8 {[%clk 0:00:19]} 36. Rxf7
{[%clk 0:01:07.5]} 36... Re8 {[%clk 0:00:11.3]} 37. Rgg7 {[%clk 0:01:07.5]}
37... Qc2 {[%clk 0:00:08.1]} 38. Qf4 {[%clk 0:00:55]} 38... Be3 {[%clk
0:00:01.6]} 39. Qxe3 {[%clk 0:00:50.7]} 1-0

[Event "Early-Titled-Tuesday-Blitz-May-28-2024"]
[Site "Chess.com"]
[Date "2024.05.28"]
[Round "3"]
[White "Pintacara"]
[Black "patzer-reloaded"]
[Result "1-0"]
[WhiteElo "2647"]
[BlackElo "2470"]
[TimeControl "180+1"]
[EndTime "8:28:23 PDT"]
[Termination "Pintacara won on time"]

1. d4 {[%clk 0:03:00.9]} 1... Nf6 {[%clk 0:02:59.5]} 2. c4 {[%clk 0:03:01.4]}
2... e6 {[%clk 0:02:59.9]} 3. Nf3 {[%clk 0:03:00.9]} 3... d5 {[%clk 0:02:59.1]}
4. Nc3 {[%clk 0:03:00.6]} 4... Bb4 {[%clk 0:02:58.5]} 5. cxd5 {[%clk 0:02:56.8]}
5... exd5 {[%clk 0:02:58.1]} 6. Bf4 {[%clk 0:02:57]} 6... O-O {[%clk 0:02:53.8]}
7. e3 {[%clk 0:02:56.9]} 7... Bf5 {[%clk 0:02:37.1]} 8. Qb3 {[%clk 0:02:56.5]}
8... c5 {[%clk 0:02:24.3]} 9. dxc5 {[%clk 0:02:47.3]} 9... Nc6 {[%clk
0:02:23.4]} 10. Bb5 {[%clk 0:02:45.1]} 10... Qa5 {[%clk 0:02:20]} 11. O-O {[%clk
0:02:23.1]} 11... Bxc3 {[%clk 0:02:02.8]} 12. bxc3 {[%clk 0:02:24]} 12... Rfd8
{[%clk 0:01:19.7]} 13. Nd4 {[%clk 0:02:12.8]} 13... Bd7 {[%clk 0:01:18.9]} 14.
a4 {[%clk 0:02:01.6]} 14... Ne4 {[%clk 0:01:10]} 15. Rfc1 {[%clk 0:01:50]} 15...
Nxc5 {[%clk 0:01:04.7]} 16. Qxd5 {[%clk 0:01:44.6]} 16... Nxd4 {[%clk
0:00:41.7]} 17. cxd4 {[%clk 0:01:40.5]} 17... Nd3 {[%clk 0:00:28.4]} 18. Bc7
{[%clk 0:01:27.2]} 18... Bxb5 {[%clk 0:00:18.1]} 19. Qxd8+ {[%clk 0:01:11.5]}
19... Rxd8 {[%clk 0:00:17]} 20. Bxa5 {[%clk 0:01:12.1]} 20... b6 {[%clk
0:00:03.3]} 21. axb5 {[%clk 0:01:09.8]} 21... Nxc1 {[%clk 0:00:02.5]} 22. Bxb6
{[%clk 0:00:57.8]} 22... axb6 {[%clk 0:00:03.4]} 23. Rxc1 {[%clk 0:00:56.8]}
23... g6 {[%clk 0:00:04]} 24. Rc6 {[%clk 0:00:56.2]} 24... Ra8 {[%clk
0:00:01.2]} 25. g3 {[%clk 0:00:54.8]} 25... Ra1+ {[%clk 0:00:01.6]} 26. Kg2
{[%clk 0:00:54.8]} 26... Kg7 {[%clk 0:00:02.1]} 27. Rxb6 {[%clk 0:00:55.4]}
27... Rb1 {[%clk 0:00:02.8]} 28. d5 {[%clk 0:00:53.8]} 28... h5 {[%clk
0:00:03.7]} 29. d6 {[%clk 0:00:54.2]} 29... Kf6 {[%clk 0:00:03.6]} 30. Rb7
{[%clk 0:00:53.6]} 30... Ke6 {[%clk 0:00:03.4]} 31. b6 {[%clk 0:00:41.8]} 31...
Rd1 {[%clk 0:00:01.8]} 32. Re7+ {[%clk 0:00:40.3]} 32... Kf6 {[%clk 0:00:01]}
33. b7 {[%clk 0:00:38.3]} 33... Rb1 {[%clk 0:00:01]} 34. e4 {[%clk 0:00:35.4]}
1-0

[Event "Early-Titled-Tuesday-Blitz-May-28-2024"]
[Site "Chess.com"]
[Date "2024.05.28"]
[Round "3"]
[White "ckgchess"]
[Black "RuperezA"]
[Result "0-1"]
[WhiteElo "2890"]
[BlackElo "2686"]
[TimeControl "180+1"]
[EndTime "8:28:24 PDT"]
[Termination "RuperezA won on time"]

1. e4 {[%clk 0:02:56.3]} 1... e6 {[%clk 0:03:00.9]} 2. d4 {[%clk 0:02:56.4]}
2... d5 {[%clk 0:03:01.8]} 3. Nc3 {[%clk 0:02:55.4]} 3... Bb4 {[%clk 0:03:01.5]}
4. e5 {[%clk 0:02:54.9]} 4... c5 {[%clk 0:03:01.8]} 5. a3 {[%clk 0:02:54.6]}
5... Bxc3+ {[%clk 0:03:02.4]} 6. bxc3 {[%clk 0:02:55.5]} 6... Qa5 {[%clk
0:03:02.9]} 7. Bd2 {[%clk 0:02:52.3]} 7... Qa4 {[%clk 0:03:03.4]} 8. Qg4 {[%clk
0:02:52.2]} 8... Kf8 {[%clk 0:03:03.1]} 9. Qd1 {[%clk 0:02:49.3]} 9... Nc6
{[%clk 0:03:03]} 10. Nf3 {[%clk 0:02:48]} 10... b6 {[%clk 0:03:02]} 11. Bd3
{[%clk 0:02:07.3]} 11... Ba6 {[%clk 0:03:01.3]} 12. dxc5 {[%clk 0:02:07.8]}
12... bxc5 {[%clk 0:03:01]} 13. Be3 {[%clk 0:02:08.1]} 13... d4 {[%clk
0:02:17.3]} 14. cxd4 {[%clk 0:02:04.4]} 14... cxd4 {[%clk 0:02:18.2]} 15. Nxd4
{[%clk 0:01:11.5]} 15... Nxd4 {[%clk 0:02:15.7]} 16. Bxd4 {[%clk 0:01:10.2]}
16... Qxd4 {[%clk 0:02:09.1]} 17. Bxa6 {[%clk 0:01:10.3]} 17... Qxe5+ {[%clk
0:02:09.6]} 18. Be2 {[%clk 0:01:07.6]} 18... Qc3+ {[%clk 0:02:08.3]} 19. Kf1
{[%clk 0:01:08.3]} 19... Ke7 {[%clk 0:01:56.7]} 20. Rb1 {[%clk 0:01:06.7]} 20...
Rc8 {[%clk 0:01:41]} 21. Rb7+ {[%clk 0:00:28.9]} 21... Rc7 {[%clk 0:01:40.9]}
22. Rxc7+ {[%clk 0:00:28.2]} 22... Qxc7 {[%clk 0:01:41.8]} 23. g3 {[%clk
0:00:28.2]} 23... Nf6 {[%clk 0:01:38.4]} 24. Kg2 {[%clk 0:00:27.9]} 24... Rd8
{[%clk 0:01:36.7]} 25. Qc1 {[%clk 0:00:28.2]} 25... Qc3 {[%clk 0:01:25.6]} 26.
Bf3 {[%clk 0:00:26.5]} 26... Rd2 {[%clk 0:01:22.8]} 27. Rd1 {[%clk 0:00:21.6]}
27... Rxc2 {[%clk 0:01:06.8]} 28. Qf4 {[%clk 0:00:20.3]} 28... Qc5 {[%clk
0:00:55.2]} 29. Bb7 {[%clk 0:00:15.2]} 29... g5 {[%clk 0:00:51.5]} 30. Qf3
{[%clk 0:00:14.5]} 30... Ng4 {[%clk 0:00:47.3]} 31. Kg1 {[%clk 0:00:03.3]} 31...
Rxf2 {[%clk 0:00:42.7]} 32. Qc6 {[%clk 0:00:03.1]} 32... Rf1+ {[%clk 0:00:35.2]}
33. Kg2 {[%clk 0:00:03.5]} 33... Qxc6+ {[%clk 0:00:33.7]} 34. Bxc6 {[%clk
0:00:03.6]} 34... Rxd1 {[%clk 0:00:34.6]} 0-1

[Event "Early-Titled-Tuesday-Blitz-May-28-2024"]
[Site "Chess.com"]
[Date "2024.05.28"]
[Round "3"]
[White "alex1531"]
[Black "TatjanaVasilevich"]
[Result "1-0"]
[WhiteElo "2451"]
[BlackElo "2598"]
[TimeControl "180+1"]
[EndTime "8:28:27 PDT"]
[Termination "alex1531 won by checkmate"]

1. d4 {[%clk 0:02:55.4]} 1... Nf6 {[%clk 0:02:59.5]} 2. Bg5 {[%clk 0:02:45.7]}
2... e6 {[%clk 0:02:57]} 3. e4 {[%clk 0:02:45.3]} 3... h6 {[%clk 0:02:52.7]} 4.
Bxf6 {[%clk 0:02:45.1]} 4... Qxf6 {[%clk 0:02:53.6]} 5. c3 {[%clk 0:02:45.1]}
5... d6 {[%clk 0:02:52]} 6. Nd2 {[%clk 0:02:44.1]} 6... e5 {[%clk 0:02:51.9]} 7.
Ngf3 {[%clk 0:02:43.2]} 7... Nc6 {[%clk 0:02:45.7]} 8. d5 {[%clk 0:02:41]} 8...
Ne7 {[%clk 0:02:43.3]} 9. Bb5+ {[%clk 0:02:08.1]} 9... Kd8 {[%clk 0:02:39.4]}
10. Qe2 {[%clk 0:02:01]} 10... g5 {[%clk 0:02:37.2]} 11. O-O-O {[%clk
0:01:57.2]} 11... Ng6 {[%clk 0:02:36.3]} 12. g3 {[%clk 0:01:55]} 12... g4 {[%clk
0:02:30.7]} 13. Ne1 {[%clk 0:01:55.1]} 13... h5 {[%clk 0:02:30.4]} 14. Kb1
{[%clk 0:01:44.1]} 14... a6 {[%clk 0:02:23.8]} 15. Ba4 {[%clk 0:01:41.8]} 15...
Bh6 {[%clk 0:02:19]} 16. c4 {[%clk 0:01:39.5]} 16... Rb8 {[%clk 0:02:14.1]} 17.
Nd3 {[%clk 0:01:35.1]} 17... Bxd2 {[%clk 0:01:59.9]} 18. Qxd2 {[%clk 0:01:32.3]}
18... Ne7 {[%clk 0:01:28.6]} 19. c5 {[%clk 0:01:30.7]} 19... Qg6 {[%clk
0:01:21.1]} 20. Rhe1 {[%clk 0:01:23.7]} 20... f5 {[%clk 0:01:20.5]} 21. cxd6
{[%clk 0:01:05.9]} 21... cxd6 {[%clk 0:01:15.5]} 22. Ka1 {[%clk 0:00:49.6]}
22... fxe4 {[%clk 0:01:13]} 23. Nxe5 {[%clk 0:00:37.2]} 23... dxe5 {[%clk
0:01:10.6]} 24. d6 {[%clk 0:00:37.4]} 24... Nc6 {[%clk 0:00:25.8]} 25. d7 {[%clk
0:00:35.9]} 25... Kc7 {[%clk 0:00:19.2]} 26. dxc8=Q+ {[%clk 0:00:36]} 26...
Rbxc8 {[%clk 0:00:19.3]} 27. Bxc6 {[%clk 0:00:25.6]} 27... bxc6 {[%clk
0:00:14.1]} 28. Qa5+ {[%clk 0:00:25.1]} 28... Kb8 {[%clk 0:00:12.4]} 29. Qb6+
{[%clk 0:00:25.1]} 29... Ka8 {[%clk 0:00:12.7]} 30. Qxa6+ {[%clk 0:00:25.4]}
30... Kb8 {[%clk 0:00:12.6]} 31. Qb6+ {[%clk 0:00:25.9]} 31... Ka8 {[%clk
0:00:12.6]} 32. Rd7 {[%clk 0:00:26.3]} 32... Rh7 {[%clk 0:00:10]} 33. Qb7#
{[%clk 0:00:25.5]} 1-0

[Event "Early-Titled-Tuesday-Blitz-May-28-2024"]
[Site "Chess.com"]
[Date "2024.05.28"]
[Round "3"]
[White "GrotBchess"]
[Black "JJDAREK"]
[Result "1-0"]
[WhiteElo "2595"]
[BlackElo "2361"]
[TimeControl "180+1"]
[EndTime "8:28:28 PDT"]
[Termination "GrotBchess won on time"]

1. e4 {[%clk 0:03:00.9]} 1... d6 {[%clk 0:03:00]} 2. d4 {[%clk 0:02:59.7]} 2...
Nf6 {[%clk 0:03:00.6]} 3. Nc3 {[%clk 0:02:58.8]} 3... g6 {[%clk 0:03:01.1]} 4.
Be3 {[%clk 0:02:57.4]} 4... a6 {[%clk 0:02:59.7]} 5. f4 {[%clk 0:02:54]} 5...
Bg7 {[%clk 0:02:43.7]} 6. Nf3 {[%clk 0:02:53.2]} 6... b5 {[%clk 0:02:41.8]} 7.
a3 {[%clk 0:02:52]} 7... Bb7 {[%clk 0:02:41.2]} 8. Bd3 {[%clk 0:02:49.8]} 8...
O-O {[%clk 0:02:41]} 9. h3 {[%clk 0:02:49.7]} 9... Nbd7 {[%clk 0:02:40.2]} 10.
e5 {[%clk 0:02:47.9]} 10... Nd5 {[%clk 0:02:32]} 11. Nxd5 {[%clk 0:02:47.5]}
11... Bxd5 {[%clk 0:02:32.9]} 12. c3 {[%clk 0:02:47.6]} 12... c5 {[%clk
0:02:29.1]} 13. O-O {[%clk 0:02:46.6]} 13... cxd4 {[%clk 0:02:25.9]} 14. cxd4
{[%clk 0:02:46.3]} 14... Rc8 {[%clk 0:02:23.1]} 15. Qe2 {[%clk 0:02:40.2]} 15...
Nb6 {[%clk 0:02:05.6]} 16. Rfc1 {[%clk 0:02:34.5]} 16... Qd7 {[%clk 0:02:01.1]}
17. Nd2 {[%clk 0:02:26.1]} 17... f6 {[%clk 0:01:49.1]} 18. exf6 {[%clk
0:02:23.7]} 18... Bxf6 {[%clk 0:01:41.6]} 19. Be4 {[%clk 0:02:22.1]} 19... Bxe4
{[%clk 0:01:38.7]} 20. Nxe4 {[%clk 0:02:23]} 20... Nd5 {[%clk 0:01:36.5]} 21.
Qd3 {[%clk 0:02:15]} 21... Kg7 {[%clk 0:01:18.9]} 22. Rf1 {[%clk 0:02:08.8]}
22... Rc4 {[%clk 0:01:00.6]} 23. b3 {[%clk 0:01:54.6]} 23... Rc6 {[%clk
0:00:57.5]} 24. Bd2 {[%clk 0:01:46]} 24... Rfc8 {[%clk 0:00:51.2]} 25. f5 {[%clk
0:01:30.9]} 25... gxf5 {[%clk 0:00:45.9]} 26. Ng3 {[%clk 0:01:30.2]} 26... e6
{[%clk 0:00:44]} 27. Rae1 {[%clk 0:01:28.5]} 27... Rc3 {[%clk 0:00:28.4]} 28.
Bxc3 {[%clk 0:01:18.1]} 28... Rxc3 {[%clk 0:00:29.3]} 29. Nh5+ {[%clk
0:01:18.1]} 29... Kf7 {[%clk 0:00:27.5]} 30. Nxf6 {[%clk 0:01:09.9]} 30... Kxf6
{[%clk 0:00:27.7]} 31. Qe2 {[%clk 0:01:09.6]} 31... Re3 {[%clk 0:00:19.7]} 32.
Qh5 {[%clk 0:01:04.9]} 32... Qg7 {[%clk 0:00:12]} 33. Rxe3 {[%clk 0:00:54.6]}
33... Nxe3 {[%clk 0:00:12.9]} 34. Rf2 {[%clk 0:00:54.8]} 34... Qg6 {[%clk
0:00:09.6]} 35. Qh4+ {[%clk 0:00:51.3]} 35... Kf7 {[%clk 0:00:09.7]} 36. Qf4
{[%clk 0:00:48.7]} 36... Nd1 {[%clk 0:00:06]} 37. Rc2 {[%clk 0:00:44.8]} 37...
e5 {[%clk 0:00:02.1]} 38. dxe5 {[%clk 0:00:44]} 38... dxe5 {[%clk 0:00:03]} 39.
Qxe5 {[%clk 0:00:44]} 39... Qb6+ {[%clk 0:00:02.9]} 40. Kh2 {[%clk 0:00:41.8]}
1-0

[Event "Early-Titled-Tuesday-Blitz-May-28-2024"]
[Site "Chess.com"]
[Date "2024.05.28"]
[Round "3"]
[White "simaopdias"]
[Black "JM05C"]
[Result "1-0"]
[WhiteElo "2255"]
[BlackElo "2542"]
[TimeControl "180+1"]
[EndTime "8:28:28 PDT"]
[Termination "simaopdias won by resignation"]

1. e4 {[%clk 0:02:57.5]} 1... c5 {[%clk 0:02:59.8]} 2. Nf3 {[%clk 0:02:56.4]}
2... d6 {[%clk 0:03:00.3]} 3. d4 {[%clk 0:02:55.8]} 3... cxd4 {[%clk 0:03:01.2]}
4. Nxd4 {[%clk 0:02:56.7]} 4... Nf6 {[%clk 0:03:01.5]} 5. Nc3 {[%clk 0:02:56.7]}
5... a6 {[%clk 0:03:02]} 6. Be2 {[%clk 0:02:56]} 6... e5 {[%clk 0:03:01.8]} 7.
Nf5 {[%clk 0:02:56.3]} 7... Nxe4 {[%clk 0:02:29]} 8. Nxg7+ {[%clk 0:02:23.6]}
8... Bxg7 {[%clk 0:02:29.9]} 9. Nxe4 {[%clk 0:02:24.1]} 9... d5 {[%clk
0:02:28.6]} 10. Ng5 {[%clk 0:02:21.1]} 10... h6 {[%clk 0:02:24.6]} 11. Nf3
{[%clk 0:02:13.1]} 11... Be6 {[%clk 0:02:23.6]} 12. O-O {[%clk 0:02:10.3]} 12...
Nc6 {[%clk 0:02:21.3]} 13. Re1 {[%clk 0:02:08.5]} 13... Qf6 {[%clk 0:02:11.4]}
14. c3 {[%clk 0:02:07.2]} 14... O-O-O {[%clk 0:01:38.3]} 15. Be3 {[%clk
0:02:03.3]} 15... Rhg8 {[%clk 0:01:36]} 16. Qa4 {[%clk 0:01:58.2]} 16... Bd7
{[%clk 0:01:15.4]} 17. Qa3 {[%clk 0:01:47.9]} 17... Bf8 {[%clk 0:01:11.6]} 18.
Qb3 {[%clk 0:01:47.5]} 18... Bg4 {[%clk 0:01:07]} 19. Kh1 {[%clk 0:01:41.9]}
19... Bxf3 {[%clk 0:01:00.5]} 20. Bxf3 {[%clk 0:01:41.4]} 20... e4 {[%clk
0:01:01.1]} 21. Be2 {[%clk 0:01:39.7]} 21... Bd6 {[%clk 0:01:00.9]} 22. Qxd5
{[%clk 0:01:18.4]} 22... Bxh2 {[%clk 0:00:59.8]} 23. Qxe4 {[%clk 0:01:15]} 23...
Bc7 {[%clk 0:01:00.4]} 24. g3 {[%clk 0:01:00.5]} 24... Rde8 {[%clk 0:00:53.3]}
25. Qf3 {[%clk 0:00:55]} 25... Qg6 {[%clk 0:00:52.8]} 26. Kg2 {[%clk 0:00:50.8]}
26... Ne5 {[%clk 0:00:51.1]} 27. Qh5 {[%clk 0:00:50.5]} 27... Qc6+ {[%clk
0:00:47.8]} 28. Kf1 {[%clk 0:00:49.2]} 28... Kb8 {[%clk 0:00:42.2]} 29. Rad1
{[%clk 0:00:48.8]} 29... f5 {[%clk 0:00:38.6]} 30. Bf4 {[%clk 0:00:47.2]} 30...
Ng4 {[%clk 0:00:24.9]} 31. Bxc7+ {[%clk 0:00:34.2]} 31... Kxc7 {[%clk
0:00:21.9]} 32. Bxg4 {[%clk 0:00:27.8]} 32... Rxe1+ {[%clk 0:00:22.5]} 33. Rxe1
{[%clk 0:00:26.4]} 33... fxg4 {[%clk 0:00:23.2]} 34. Qf7+ {[%clk 0:00:24.5]}
34... Kb6 {[%clk 0:00:18]} 35. Re6 {[%clk 0:00:23.6]} 1-0

[Event "Early-Titled-Tuesday-Blitz-May-28-2024"]
[Site "Chess.com"]
[Date "2024.05.28"]
[Round "3"]
[White "Mr_ruthless"]
[Black "enriquebutti"]
[Result "1-0"]
[WhiteElo "2469"]
[BlackElo "2091"]
[TimeControl "180+1"]
[EndTime "8:28:28 PDT"]
[Termination "Mr_ruthless won by resignation"]

1. d4 {[%clk 0:02:52]} 1... Nf6 {[%clk 0:02:58.8]} 2. c4 {[%clk 0:02:51]} 2...
e6 {[%clk 0:02:58.2]} 3. Nf3 {[%clk 0:02:50.9]} 3... c5 {[%clk 0:02:56.9]} 4. d5
{[%clk 0:02:49.1]} 4... exd5 {[%clk 0:02:56.5]} 5. cxd5 {[%clk 0:02:49.5]} 5...
d6 {[%clk 0:02:56.3]} 6. Nc3 {[%clk 0:02:50]} 6... g6 {[%clk 0:02:54.3]} 7. e4
{[%clk 0:02:45]} 7... a6 {[%clk 0:02:53.5]} 8. a4 {[%clk 0:02:44.2]} 8... Bg4
{[%clk 0:02:52.6]} 9. h3 {[%clk 0:02:42]} 9... Bxf3 {[%clk 0:02:51.9]} 10. Qxf3
{[%clk 0:02:42.8]} 10... Bg7 {[%clk 0:02:51.2]} 11. Bd3 {[%clk 0:02:37.2]} 11...
O-O {[%clk 0:02:50.3]} 12. O-O {[%clk 0:02:37.2]} 12... Nbd7 {[%clk 0:02:49.7]}
13. Bf4 {[%clk 0:02:35.8]} 13... Ne8 {[%clk 0:02:48.2]} 14. Qg3 {[%clk
0:02:28.7]} 14... Qe7 {[%clk 0:02:41.2]} 15. Rfe1 {[%clk 0:02:25.9]} 15... Ne5
{[%clk 0:02:38.3]} 16. Bf1 {[%clk 0:02:21.3]} 16... Nc7 {[%clk 0:02:34.8]} 17.
Kh1 {[%clk 0:02:16.6]} 17... Rab8 {[%clk 0:02:27.7]} 18. a5 {[%clk 0:02:14.5]}
18... b5 {[%clk 0:02:24.4]} 19. axb6 {[%clk 0:02:12.9]} 19... Rxb6 {[%clk
0:02:23.8]} 20. Na4 {[%clk 0:01:48.1]} 20... Rb4 {[%clk 0:02:21.1]} 21. Bd2
{[%clk 0:01:46.9]} 21... Rb7 {[%clk 0:01:56.4]} 22. f4 {[%clk 0:01:24.3]} 22...
Nd7 {[%clk 0:01:52.6]} 23. Bc3 {[%clk 0:01:24.2]} 23... Nb5 {[%clk 0:01:41.7]}
24. Bxg7 {[%clk 0:01:21.6]} 24... Kxg7 {[%clk 0:01:35.4]} 25. e5 {[%clk
0:01:17.5]} 25... Nd4 {[%clk 0:01:28.9]} 26. Bxa6 {[%clk 0:01:15.5]} 26... Rb3
{[%clk 0:01:27.7]} 27. Nc3 {[%clk 0:00:39.2]} 27... Nc2 {[%clk 0:01:17.7]} 28.
Bc4 {[%clk 0:00:32.4]} 28... Rb4 {[%clk 0:01:13.3]} 29. exd6 {[%clk 0:00:29.2]}
29... Qxd6 {[%clk 0:01:05.2]} 30. Ne4 {[%clk 0:00:28.7]} 30... Qb6 {[%clk
0:01:04.1]} 31. Qc3+ {[%clk 0:00:28]} 31... Nf6 {[%clk 0:00:57.9]} 32. Ra6
{[%clk 0:00:14.2]} 32... Rxc4 {[%clk 0:00:51]} 33. Qxc4 {[%clk 0:00:11]} 33...
Qxb2 {[%clk 0:00:49]} 34. Ra2 {[%clk 0:00:06.6]} 1-0

[Event "Early-Titled-Tuesday-Blitz-May-28-2024"]
[Site "Chess.com"]
[Date "2024.05.28"]
[Round "3"]
[White "Grischuk"]
[Black "Abund"]
[Result "1-0"]
[WhiteElo "3116"]
[BlackElo "2790"]
[TimeControl "180+1"]
[EndTime "8:28:29 PDT"]
[Termination "Grischuk won by checkmate"]

1. d4 {[%clk 0:03:00.9]} 1... d5 {[%clk 0:03:00]} 2. Nf3 {[%clk 0:03:00.6]} 2...
Nf6 {[%clk 0:03:00]} 3. Bg5 {[%clk 0:03:01.2]} 3... Ne4 {[%clk 0:02:59.9]} 4.
Bh4 {[%clk 0:03:01.3]} 4... c5 {[%clk 0:02:59.7]} 5. e3 {[%clk 0:03:00.2]} 5...
Qb6 {[%clk 0:02:49.4]} 6. Nc3 {[%clk 0:03:00.1]} 6... Qa5 {[%clk 0:02:48.7]} 7.
Bb5+ {[%clk 0:02:58.1]} 7... Nc6 {[%clk 0:02:48.8]} 8. O-O {[%clk 0:02:35.5]}
8... Nxc3 {[%clk 0:02:47.4]} 9. Bxc6+ {[%clk 0:02:36.1]} 9... bxc6 {[%clk
0:02:48.1]} 10. bxc3 {[%clk 0:02:37]} 10... Qxc3 {[%clk 0:02:48.9]} 11. Ne5
{[%clk 0:02:25.8]} 11... h5 {[%clk 0:02:20.1]} 12. Rb1 {[%clk 0:01:48.2]} 12...
f6 {[%clk 0:01:55.9]} 13. Nxc6 {[%clk 0:01:02.9]} 13... cxd4 {[%clk 0:01:31.4]}
14. Nxd4 {[%clk 0:01:03.8]} 14... a6 {[%clk 0:01:05.2]} 15. Qf3 {[%clk
0:00:48.8]} 15... e6 {[%clk 0:00:51.7]} 16. h3 {[%clk 0:00:38]} 16... Bd6 {[%clk
0:00:38]} 17. Bg3 {[%clk 0:00:36.1]} 17... Be7 {[%clk 0:00:18]} 18. Rb6 {[%clk
0:00:31.9]} 18... Kf7 {[%clk 0:00:15.8]} 19. Rc6 {[%clk 0:00:27.6]} 19... Qa3
{[%clk 0:00:13.4]} 20. Rc7 {[%clk 0:00:28.2]} 20... g6 {[%clk 0:00:04.6]} 21.
Nc6 {[%clk 0:00:13.1]} 21... Re8 {[%clk 0:00:04.8]} 22. Bh4 {[%clk 0:00:13.7]}
22... Kf8 {[%clk 0:00:01.7]} 23. Bxf6 {[%clk 0:00:10.7]} 23... Bd6 {[%clk
0:00:01.6]} 24. Be5+ {[%clk 0:00:08.9]} 24... Kg8 {[%clk 0:00:01.6]} 25. Qf7#
{[%clk 0:00:08.7]} 1-0

[Event "Early-Titled-Tuesday-Blitz-May-28-2024"]
[Site "Chess.com"]
[Date "2024.05.28"]
[Round "3"]
[White "dmosesov"]
[Black "tomesao"]
[Result "1-0"]
[WhiteElo "2645"]
[BlackElo "2470"]
[TimeControl "180+1"]
[EndTime "8:28:31 PDT"]
[Termination "dmosesov won by resignation"]

1. Nf3 {[%clk 0:03:00.9]} 1... d5 {[%clk 0:02:59.4]} 2. c4 {[%clk 0:03:00.5]}
2... d4 {[%clk 0:02:58.4]} 3. d3 {[%clk 0:02:53.9]} 3... c5 {[%clk 0:02:56.7]}
4. e3 {[%clk 0:02:53.5]} 4... Nc6 {[%clk 0:02:55.7]} 5. exd4 {[%clk 0:02:53.7]}
5... cxd4 {[%clk 0:02:55.4]} 6. g3 {[%clk 0:02:54.2]} 6... e5 {[%clk 0:02:52.4]}
7. Bg2 {[%clk 0:02:54.5]} 7... Bd6 {[%clk 0:02:52.2]} 8. O-O {[%clk 0:02:54.9]}
8... Nf6 {[%clk 0:02:50.1]} 9. Bg5 {[%clk 0:02:42.1]} 9... h6 {[%clk 0:02:46.5]}
10. Bxf6 {[%clk 0:02:42.2]} 10... Qxf6 {[%clk 0:02:47.4]} 11. a3 {[%clk
0:02:40.3]} 11... a5 {[%clk 0:02:46.8]} 12. Nbd2 {[%clk 0:02:40.9]} 12... Qe7
{[%clk 0:02:42.5]} 13. Re1 {[%clk 0:02:37.8]} 13... O-O {[%clk 0:02:39.6]} 14.
Rc1 {[%clk 0:02:35]} 14... f6 {[%clk 0:02:25.1]} 15. Nh4 {[%clk 0:02:28]} 15...
Re8 {[%clk 0:02:06.3]} 16. Qh5 {[%clk 0:02:18.8]} 16... Qf7 {[%clk 0:01:51.6]}
17. Bf3 {[%clk 0:01:43.2]} 17... Qxh5 {[%clk 0:01:44.2]} 18. Bxh5 {[%clk
0:01:44.1]} 18... Rd8 {[%clk 0:01:43.8]} 19. c5 {[%clk 0:01:34]} 19... Bc7
{[%clk 0:01:42.8]} 20. Nc4 {[%clk 0:01:30.3]} 20... Be6 {[%clk 0:01:35.3]} 21.
Bf3 {[%clk 0:01:16]} 21... g5 {[%clk 0:01:20.4]} 22. Ng2 {[%clk 0:01:14.6]}
22... a4 {[%clk 0:01:19.7]} 23. Be4 {[%clk 0:01:04.6]} 23... Kg7 {[%clk
0:01:16.4]} 24. f4 {[%clk 0:00:53.7]} 24... Bxc4 {[%clk 0:00:47.6]} 25. Rxc4
{[%clk 0:00:54.6]} 25... Ra5 {[%clk 0:00:37.3]} 26. Re2 {[%clk 0:00:32.7]} 26...
Rd7 {[%clk 0:00:32.9]} 27. Rf2 {[%clk 0:00:31.1]} 27... Re7 {[%clk 0:00:27.4]}
28. fxg5 {[%clk 0:00:30.7]} 28... hxg5 {[%clk 0:00:26.7]} 29. h4 {[%clk
0:00:30.1]} 29... Nd8 {[%clk 0:00:23.1]} 30. hxg5 {[%clk 0:00:27.5]} 30... fxg5
{[%clk 0:00:24]} 31. Ne1 {[%clk 0:00:22.2]} 31... Ne6 {[%clk 0:00:23.2]} 32. c6
{[%clk 0:00:21]} 32... b5 {[%clk 0:00:21.9]} 33. Rcc2 {[%clk 0:00:20.6]} 33...
Bb6 {[%clk 0:00:19.4]} 34. Rf5 {[%clk 0:00:20.5]} 34... Raa7 {[%clk 0:00:17.4]}
35. Rxe5 {[%clk 0:00:20.5]} 35... Nc5 {[%clk 0:00:16.1]} 36. Rexc5 {[%clk
0:00:20.2]} 36... Bxc5 {[%clk 0:00:14.3]} 37. Rxc5 {[%clk 0:00:21.1]} 37... Rac7
{[%clk 0:00:14.6]} 38. Rxg5+ {[%clk 0:00:20.6]} 1-0